bitfinex/quotes_BTCUSD_20241201
["timestamp","ask_amount","ask_price","bid_price","bid_amount"]
[1733030161357,0.0027866,96515.0,96514.0,0.37982771]
[1733030161565,0.0027866,96515.0,96514.0,0.38344403]
[1733030162133,0.0027866,96515.0,96514.0,0.1510418]
[1733030162358,0.0027866,96515.0,96514.0,0.15242534]
[1733030162763,0.0027866,96515.0,96514.0,0.38482757]
[1733030162967,0.0027866,96515.0,96514.0,0.1510418]
[1733030163218,0.0027866,96515.0,96514.0,0.15242534]
[1733030165303,0.0027866,96515.0,96514.0,0.33826606]
[1733030165515,0.0027866,96515.0,96514.0,0.33688252]
[1733030165736,0.0027866,96515.0,96514.0,0.1510418]
[1733030165953,0.0027866,96515.0,96514.0,0.33825879]
[1733030166159,0.0027866,96515.0,96514.0,0.33687525]
[1733030167125,0.0027866,96515.0,96514.0,0.1510418]
[1733030167346,0.0017866,96515.0,96514.0,0.13842535]
[1733030167765,0.0027866,96515.0,96514.0,0.14742535]
[1733030168220,0.0027866,96515.0,96514.0,0.15242535]
[1733030168435,0.0027866,96515.0,96514.0,0.3382588]
[1733030168651,0.0027866,96515.0,96514.0,0.33687525]
[1733030168854,0.0027866,96515.0,96514.0,0.1510418]
[1733030169065,0.0027866,96515.0,96514.0,0.15242537]
[1733030171219,0.0027866,96515.0,96514.0,0.15242545]
[1733030171425,0.0027866,96515.0,96514.0,0.14467607]
[1733030171639,0.0027866,96515.0,96514.0,0.15242691]
[1733030172698,0.0027866,96515.0,96514.0,0.33826036]
[1733030172902,0.0027866,96515.0,96514.0,0.33687679]
[1733030173125,0.0027866,96515.0,96514.0,0.15104334]
[1733030173303,0.0027866,96515.0,96514.0,0.15242699]
[1733030174471,0.0027866,96515.0,96514.0,0.3506632]
[1733030174670,0.0027866,96515.0,96514.0,0.16344698]
[1733030174880,0.0027866,96515.0,96514.0,0.16483057]
[1733030175517,0.0027866,96515.0,96514.0,0.35062589]
[1733030175732,0.0027866,96515.0,96514.0,0.3492423]
[1733030176566,0.0027866,96515.0,96514.0,0.2209423]
[1733030179648,0.0027866,96515.0,96514.0,0.2209931]
[1733030179854,0.11489402,96515.0,96514.0,0.2209931]
[1733030180075,0.24439402,96515.0,96514.0,0.02274422]
[1733030180277,0.15599558,96515.0,96514.0,0.02274422]
[1733030180699,0.15599558,96515.0,96514.0,0.01774422]
[1733030181121,0.15599558,96515.0,96514.0,0.01974422]
[1733030181336,0.15599773,96515.0,96514.0,0.01975158]
[1733030181773,0.13658929,96515.0,96514.0,0.01975234]
[1733030181978,0.15599981,96515.0,96514.0,0.01975234]
[1733030182823,0.15499981,96515.0,96514.0,0.01075234]
[1733030183282,0.15499981,96515.0,96514.0,0.01175234]
[1733030183492,0.02549981,96515.0,96514.0,0.27669846]
[1733030183698,0.00608929,96515.0,96514.0,0.27669846]
[1733030183905,0.0017866,96515.0,96514.0,0.10426809]
[1733030184108,0.0017866,96515.0,96514.0,0.10365183]
[1733030184557,0.0017866,96515.0,96514.0,0.10465183]
[1733030185182,0.0017866,96515.0,96514.0,0.10765183]
[1733030186097,0.0017866,96515.0,96514.0,0.10865183]
[1733030186323,0.0017866,96515.0,96514.0,0.10665183]
[1733030186526,0.0017866,96515.0,96514.0,0.10365183]
[1733030186733,0.0027866,96515.0,96514.0,0.11565183]
[1733030186915,0.0027866,96515.0,96514.0,0.10765183]
[1733030187114,0.0027866,96515.0,96514.0,0.10365183]
[1733030187321,0.0037866,96515.0,96514.0,0.11165183]
[1733030187528,0.0037866,96515.0,96514.0,0.11565183]
[1733030187733,0.0037866,96515.0,96514.0,0.21849704]
[1733030187967,0.0037866,96515.0,96514.0,0.2171133]
[1733030188403,0.0037866,96515.0,96514.0,0.2131133]
[1733030188583,0.0037866,96515.0,96514.0,0.21449652]
[1733030188995,0.0017866,96515.0,96514.0,0.20649652]
[1733030189439,0.0027866,96515.0,96514.0,0.2131133]
[1733030190284,0.0027866,96515.0,96514.0,0.2171133]
[1733030190931,0.0027866,96515.0,96514.0,0.49617418]
[1733030192202,0.0027866,96515.0,96514.0,0.48841188]
[1733030192470,0.0027866,96515.0,96514.0,0.49617019]
[1733030193978,0.0027866,96515.0,96514.0,0.41507019]
[1733030194418,0.0027866,96515.0,96514.0,0.41511677]
[1733030194640,0.0027866,96515.0,96514.0,0.31227156]
[1733030195141,0.0027866,96515.0,96514.0,0.0331641]
[1733030195387,0.0027866,96515.0,96514.0,0.03454794]
[1733030195863,0.00700197,96515.0,96514.0,0.03454794]
[1733030201494,0.00700197,96515.0,96514.0,0.0331641]
[1733030202408,0.00700197,96515.0,96514.0,0.03316695]
[1733030202851,0.00700197,96515.0,96514.0,0.03455095]
[1733030207369,0.00700197,96515.0,96514.0,0.03316695]
[1733030207855,0.00700197,96515.0,96514.0,0.03455096]
[1733030208075,0.00700197,96515.0,96514.0,0.03316695]
[1733030208962,0.00700197,96515.0,96514.0,0.03316266]
[1733030209675,0.00700197,96515.0,96514.0,0.03454661]
[1733030210312,0.00700197,96515.0,96514.0,0.03316266]
[1733030212713,0.00700197,96515.0,96514.0,0.03316593]
[1733030213779,0.02642494,96515.0,96514.0,0.03316593]
[1733030215055,0.00700197,96515.0,96514.0,0.03316593]
[1733030215471,0.00669289,96515.0,96514.0,0.03316593]
[1733030216107,0.02611449,96515.0,96514.0,0.03316593]
[1733030217311,0.02611449,96515.0,96514.0,0.25350647]
[1733030219122,0.02611449,96515.0,96514.0,0.26592089]
[1733030219318,0.02611449,96515.0,96514.0,0.25816188]
[1733030219570,0.02611449,96515.0,96514.0,0.26592218]
[1733030221943,0.02611449,96515.0,96514.0,0.26592565]
[1733030222174,0.00669289,96515.0,96514.0,0.24574746]
[1733030222397,0.02611465,96515.0,96514.0,0.2659256]
[1733030223090,0.02611465,96515.0,96514.0,0.26593009]
[1733030225890,0.00669289,96515.0,96514.0,0.26593009]
[1733030226130,0.00669289,96515.0,96514.0,0.03317064]
[1733030226348,0.00247752,96515.0,96514.0,0.0345545]
[1733030227012,0.00247752,96515.0,96514.0,0.36336584]
[1733030227227,0.00247752,96515.0,96514.0,0.08267064]
[1733030227467,0.00247752,96515.0,96514.0,0.08405406]
[1733030228381,0.00247752,96515.0,96514.0,0.26813706]
[1733030228612,0.00247752,96515.0,96514.0,0.26675364]
[1733030229256,0.00247752,96515.0,96514.0,0.6791743]
[1733030229702,0.00247752,96515.0,96514.0,0.26675364]
[1733030229907,0.00147752,96515.0,96514.0,0.25875364]
[1733030230531,0.00147752,96515.0,96514.0,0.25475364]
[1733030231009,0.00147752,96515.0,96514.0,0.25975364]
[1733030231644,0.00147752,96515.0,96514.0,0.26875364]
[1733030231854,0.00247752,96515.0,96514.0,0.26875364]
[1733030232280,0.00247752,96515.0,96514.0,0.2485755]
[1733030232486,0.00247752,96515.0,96514.0,0.66058108]
[1733030232711,0.00247752,96515.0,96514.0,0.81058108]
[1733030232925,0.00247752,96515.0,96514.0,0.4085755]
[1733030233556,0.00247752,96515.0,96514.0,0.4035755]
[1733030233981,0.00247752,96515.0,96514.0,0.411439]
[1733030234671,0.0017274,96532.0,96531.0,0.207187]
[1733030234890,0.0017274,96532.0,96531.0,0.20956646]
[1733030236203,0.0017274,96532.0,96531.0,0.21656646]
[1733030236423,0.0017274,96532.0,96531.0,0.2151837]
[1733030236877,0.0017274,96532.0,96531.0,0.2191837]
[1733030243286,0.0017274,96532.0,96531.0,0.23042415]
[1733030254463,0.0017274,96532.0,96531.0,0.22342415]
[1733030254970,0.0017274,96532.0,96531.0,0.23042415]
[1733030255834,0.0017274,96532.0,96531.0,0.22642415]
[1733030256029,0.0017274,96532.0,96531.0,0.21942415]
[1733030256230,0.0017274,96532.0,96531.0,0.22342415]
[1733030256428,0.0017274,96532.0,96531.0,0.23242415]
[1733030256641,0.0017274,96532.0,96531.0,0.22842415]
[1733030257058,0.0017274,96532.0,96531.0,0.23342415]
[1733030262196,0.0017274,96532.0,96531.0,0.33700715]
[1733030262420,0.0017274,96532.0,96531.0,0.49700715]
[1733030262660,0.0017274,96532.0,96531.0,0.49200715]
[1733030262901,0.0017274,96532.0,96531.0,0.49800715]
[1733030263125,0.0017274,96532.0,96531.0,0.48900715]
[1733030263347,0.0017274,96532.0,96531.0,0.49800715]
[1733030263579,0.0017274,96532.0,96531.0,0.48300715]
[1733030263775,0.0017274,96532.0,96531.0,0.76827385]
[1733030263891,0.0017274,96532.0,96531.0,0.49900715]
[1733030264119,0.0017274,96532.0,96531.0,0.54710715]
[1733030264344,0.0017274,96532.0,96531.0,0.62630715]
[1733030266011,0.0017274,96532.0,96531.0,0.61030715]
[1733030266257,0.0017274,96532.0,96531.0,1.02118533]
[1733030266458,0.0017274,96532.0,96531.0,0.62730715]
[1733030268220,0.0017274,96532.0,96531.0,1.03818533]
[1733030268628,0.0017274,96532.0,96531.0,0.62730715]
[1733030268835,0.0017274,96532.0,96531.0,1.03826038]
[1733030269072,0.0017274,96532.0,96531.0,1.03825669]
[1733030269307,0.0017274,96532.0,96531.0,0.62730715]
[1733030270151,0.0017274,96532.0,96531.0,1.03833135]
[1733030270354,0.0017274,96532.0,96531.0,0.62730715]
[1733030271482,0.0017272,96549.0,96547.0,0.207152]
[1733030271685,0.0017272,96549.0,96547.0,0.20953387]
[1733030272640,0.00188131,96548.0,96547.0,0.20953387]
[1733030273012,0.00188131,96548.0,96547.0,0.21953387]
[1733030273238,0.00188131,96548.0,96547.0,0.2181516]
[1733030278383,0.00188131,96548.0,96547.0,0.49673914]
[1733030278586,0.00188131,96548.0,96547.0,0.2181516]
[1733030279097,0.00188131,96548.0,96547.0,0.22926295]
[1733030279721,0.00188131,96548.0,96547.0,0.33284595]
[1733030295036,0.00188131,96548.0,96547.0,0.48284595]
[1733030296766,0.00188131,96548.0,96547.0,0.47584595]
[1733030297194,0.00188131,96548.0,96547.0,0.49484595]
[1733030297354,0.00106204,96550.0,96549.0,0.20788579]
[1733030297549,0.00106204,96550.0,96549.0,0.46211247]
[1733030297766,0.00106204,96550.0,96549.0,0.460731]
[1733030299510,0.00106204,96550.0,96549.0,0.466731]
[1733030299911,0.12788944,96564.0,96563.0,0.207118]
[1733030300241,0.12788944,96564.0,96563.0,0.44018031]
[1733030301278,0.0486,96564.0,96563.0,0.54802552]
[1733030301459,0.0486,96579.0,96578.0,0.207086]
[1733030302209,0.0486,96579.0,96578.0,0.39269962]
[1733030302416,0.0486,96579.0,96578.0,0.207086]
[1733030302613,0.04876642,96579.0,96578.0,0.207086]
[1733030302931,0.12896642,96579.0,96578.0,0.207086]
[1733030303348,0.12896642,96579.0,96578.0,0.208086]
[1733030303711,0.12896642,96579.0,96578.0,0.211086]
[1733030305141,0.12896642,96579.0,96578.0,0.2120715]
[1733030307365,0.12896642,96579.0,96578.0,0.40868069]
[1733030308284,0.12896642,96579.0,96578.0,0.22310073]
[1733030308490,0.12896642,96579.0,96578.0,0.40865571]
[1733030309279,0.12896642,96579.0,96578.0,0.22310073]
[1733030309486,0.12896642,96579.0,96578.0,0.40865764]
[1733030311215,0.12896642,96579.0,96578.0,0.22310073]
[1733030311216,0.04876642,96579.0,96578.0,0.22310073]
[1733030311410,0.00016642,96579.0,96578.0,0.22310073]
[1733030312441,0.00016642,96579.0,96578.0,0.22210073]
[1733030312655,0.00016642,96579.0,96578.0,0.32494594]
[1733030312860,0.00016642,96579.0,96578.0,0.60531588]
[1733030313020,0.00016642,96579.0,96578.0,0.32768373]
[1733030313226,0.00016642,96579.0,96578.0,0.32468373]
[1733030313445,0.00016642,96579.0,96578.0,0.56678373]
[1733030313671,0.00016642,96579.0,96578.0,0.57478373]
[1733030314081,0.00016642,96579.0,96578.0,0.57278373]
[1733030314448,0.00016642,96579.0,96578.0,0.56478373]
[1733030314731,0.00016642,96579.0,96578.0,0.57778373]
[1733030314923,0.00016642,96579.0,96578.0,0.57378373]
[1733030315209,0.00016642,96579.0,96578.0,0.56478373]
[1733030315440,0.00016642,96579.0,96578.0,0.57278373]
[1733030316408,0.00016642,96579.0,96578.0,0.58178373]
[1733030316654,0.0809,96598.0,96594.0,0.207052]
[1733030316891,0.0809,96598.0,96595.0,0.00236107]
[1733030318766,0.0809,96598.0,96595.0,0.00636107]
[1733030320408,0.0809,96598.0,96595.0,0.01436107]
[1733030324724,0.0809,96598.0,96595.0,0.02527163]
[1733030327449,0.0478268,96601.0,96595.0,0.02527163]
[1733030327450,0.1365,96596.0,96595.0,0.02389146]
[1733030327894,0.14103561,96596.0,96595.0,0.02389146]
[1733030328924,0.14189911,96596.0,96595.0,0.02389146]
[1733030337826,0.06189911,96596.0,96595.0,0.02389146]
[1733030338054,0.01539911,96596.0,96595.0,0.02389146]
[1733030339848,0.0108635,96596.0,96595.0,0.02389146]
[1733030342906,0.01540145,96596.0,96595.0,0.02389146]
[1733030343108,0.0108635,96596.0,96595.0,0.02389146]
[1733030347406,0.0154012,96596.0,96595.0,0.02389146]
[1733030347621,0.1383012,96596.0,96595.0,0.0129809]
[1733030349577,0.1383012,96596.0,96595.0,0.19842848]
[1733030350557,0.1383012,96596.0,96595.0,0.0129809]
[1733030350756,0.1383012,96596.0,96595.0,0.19850269]
[1733030351041,0.1383012,96596.0,96595.0,0.0129809]
[1733030352823,0.1383012,96596.0,96595.0,0.24425777]
[1733030353054,0.1383012,96596.0,96595.0,0.24598417]
[1733030353303,0.0927012,96596.0,96595.0,0.0147073]
[1733030354928,0.0881635,96596.0,96595.0,0.0147073]
[1733030360298,0.0881635,96596.0,96595.0,0.29317592]
[1733030360516,0.0881635,96596.0,96595.0,0.0147073]
[1733030361731,0.09223657,96596.0,96595.0,0.0147073]
[1733030365608,0.29928357,96596.0,96595.0,0.0147073]
[1733030367899,0.09223657,96596.0,96595.0,0.0147073]
[1733030374367,0.11165292,96596.0,96595.0,0.0147073]
[1733030374798,0.26079813,96596.0,96595.0,0.0147073]
[1733030375003,0.29306034,96596.0,96595.0,0.0147073]
[1733030375216,0.29306188,96596.0,96595.0,0.19960815]
[1733030375436,0.29306188,96596.0,96595.0,0.0137264]
[1733030377735,0.29306188,96596.0,96595.0,0.0097264]
[1733030378395,0.27364399,96596.0,96595.0,0.0097264]
[1733030378830,0.29304567,96596.0,96595.0,0.0097264]
[1733030379046,0.29304567,96596.0,96595.0,0.0017264]
[1733030385681,0.29301619,96596.0,96595.0,0.0017264]
[1733030396241,0.27364399,96596.0,96595.0,0.0017264]
[1733030397310,0.29301478,96596.0,96595.0,0.0017264]
[1733030401230,0.44301478,96596.0,96595.0,0.0017264]
[1733030402553,0.45401478,96596.0,96595.0,0.0027264]
[1733030403227,0.43464399,96596.0,96595.0,0.0027264]
[1733030403445,0.52686996,96596.0,96595.0,0.0027264]
[1733030409493,0.55919312,96596.0,96595.0,0.0027264]
[1733030419490,0.56051845,96596.0,96595.0,4e-07]
[1733030419706,0.65348552,96596.0,96595.0,4e-07]
[1733030419926,0.56051845,96596.0,96595.0,4e-07]
[1733030420157,0.57051845,96596.0,96595.0,4e-07]
[1733030420572,0.56919312,96596.0,96595.0,4e-07]
[1733030420987,0.75512726,96596.0,96595.0,0.0017268]
[1733030421416,0.75530964,96596.0,96595.0,0.0017268]
[1733030422221,0.56919312,96596.0,96595.0,0.0017268]
[1733030422419,0.75530964,96596.0,96595.0,0.0017268]
[1733030423276,0.56919312,96596.0,96595.0,0.0017268]
[1733030423479,0.75530964,96596.0,96595.0,0.0017268]
[1733030423797,0.56919312,96596.0,96595.0,0.0017268]
[1733030425090,0.70875161,96596.0,96595.0,0.0017268]
[1733030425290,0.70874898,96596.0,96595.0,0.0017268]
[1733030425497,0.56919312,96596.0,96595.0,0.0017268]
[1733030425696,0.6622262,96596.0,96595.0,0.0017268]
[1733030425900,0.56919312,96596.0,96595.0,0.0017268]
[1733030426898,0.51304621,96579.0,96572.0,0.0009957]
[1733030427055,0.62599471,96579.0,96572.0,0.0009957]
[1733030427270,0.62599471,96579.0,96559.0,0.0009962]
[1733030427271,0.63141833,96579.0,96559.0,0.0009962]
[1733030427473,0.6637231,96579.0,96559.0,0.0009962]
[1733030427704,0.67214601,96579.0,96559.0,0.0009962]
[1733030427904,0.77497747,96579.0,96559.0,0.0009962]
[1733030428123,0.77597747,96579.0,96559.0,0.0009962]
[1733030428775,0.79633833,96579.0,96559.0,0.0009962]
[1733030429005,0.79633833,96579.0,96578.0,4.2e-07]
[1733030429227,0.88935084,96579.0,96578.0,4.2e-07]
[1733030429422,0.93585709,96579.0,96578.0,4.2e-07]
[1733030429629,0.79633833,96579.0,96578.0,4.2e-07]
[1733030430036,0.79533833,96579.0,96578.0,4.2e-07]
[1733030430244,0.81033833,96579.0,96578.0,4.2e-07]
[1733030430457,0.80333833,96579.0,96578.0,4.2e-07]
[1733030430883,0.80333833,96579.0,96559.0,0.0009962]
[1733030430884,0.46667621,96565.0,96559.0,0.0009962]
[1733030431102,0.65861034,96565.0,96547.0,0.0017272]
[1733030431360,0.70893035,96565.0,96547.0,0.0017272]
[1733030432143,0.71893035,96565.0,96547.0,0.0017272]
[1733030433417,0.72793035,96565.0,96564.0,0.002727]
[1733030434505,0.73293035,96565.0,96564.0,0.002727]
[1733030435233,0.74379052,96565.0,96564.0,0.002727]
[1733030439965,0.74793752,96565.0,96564.0,0.002727]
[1733030442355,0.72867531,96565.0,96564.0,0.002727]
[1733030442558,0.61423752,96565.0,96564.0,0.002727]
[1733030442681,0.5251486,96565.0,96564.0,0.002727]
[1733030444504,0.5210016,96565.0,96564.0,0.002727]
[1733030445713,0.5160016,96565.0,96564.0,0.002727]
[1733030445945,0.5190016,96565.0,96564.0,0.002727]
[1733030446660,0.60332306,96565.0,96564.0,0.001727]
[1733030447342,0.60032306,96565.0,96564.0,0.001727]
[1733030447571,0.60932306,96565.0,96564.0,0.002727]
[1733030447819,0.60332306,96565.0,96564.0,0.001727]
[1733030448249,0.60832306,96565.0,96564.0,0.001727]
[1733030449248,0.5150016,96565.0,96564.0,0.001727]
[1733030458399,0.3650016,96565.0,96564.0,0.001727]
[1733030459335,0.35414143,96565.0,96564.0,0.001727]
[1733030459732,0.35414143,96565.0,96564.0,0.051227]
[1733030459940,0.34914143,96565.0,96564.0,0.051227]
[1733030460150,0.34614143,96565.0,96564.0,0.051227]
[1733030460365,0.34814143,96565.0,96564.0,0.051227]
[1733030460789,0.35114143,96565.0,96564.0,0.051227]
[1733030461216,0.34814143,96565.0,96564.0,0.051227]
[1733030461445,0.34914143,96565.0,96564.0,0.051227]
[1733030467732,0.34914143,96565.0,96564.0,0.001727]
[1733030474395,0.42547687,96565.0,96564.0,0.001727]
[1733030474782,0.44488616,96565.0,96564.0,0.001727]
[1733030475042,0.44488618,96565.0,96564.0,0.001727]
[1733030476669,0.36855074,96565.0,96564.0,0.001727]
[1733030478492,0.34914143,96565.0,96564.0,0.001727]
[1733030478978,0.38796373,96565.0,96564.0,0.001727]
[1733030479936,0.36855259,96565.0,96564.0,0.001727]
[1733030481234,0.36555259,96565.0,96564.0,0.001727]
[1733030481416,0.36755259,96565.0,96564.0,0.001727]
[1733030482541,0.36855259,96565.0,96564.0,0.001727]
[1733030482752,0.44772915,96565.0,96564.0,0.001727]
[1733030482954,0.44672915,96565.0,96564.0,0.001727]
[1733030483225,0.44572915,96565.0,96564.0,0.001727]
[1733030483458,0.36655259,96565.0,96564.0,0.001727]
[1733030483693,0.36755259,96565.0,96564.0,0.001727]
[1733030483919,0.36655259,96565.0,96564.0,0.001727]
[1733030484127,0.36855259,96565.0,96564.0,0.001727]
[1733030484332,0.36755259,96565.0,96564.0,0.001727]
[1733030484566,0.36555259,96565.0,96564.0,0.001727]
[1733030484803,0.34714143,96565.0,96564.0,0.001727]
[1733030484986,0.34614143,96565.0,96564.0,0.001727]
[1733030486387,0.34914143,96565.0,96564.0,0.001727]
[1733030486569,0.34714143,96565.0,96564.0,0.001727]
[1733030486773,0.34614143,96565.0,96564.0,0.001727]
[1733030486981,0.34714143,96565.0,96564.0,0.001727]
[1733030487186,0.34814143,96565.0,96564.0,0.001727]
[1733030491387,0.00592001,96565.0,96564.0,0.333843]
[1733030491593,0.002,96565.0,96564.0,0.3348372]
[1733030491803,0.002,96565.0,96564.0,0.5674206]
[1733030492217,0.002,96565.0,96564.0,0.3348372]
[1733030492646,0.001,96565.0,96564.0,0.3348372]
[1733030492855,0.002,96565.0,96564.0,0.3418372]
[1733030493051,0.001,96565.0,96564.0,0.3418372]
[1733030493292,0.00229108,96574.0,96564.0,0.1277212]
[1733030493556,0.00229108,96574.0,96565.0,0.18600818]
[1733030493791,0.00303319,96573.0,96565.0,0.18600818]
[1733030494024,0.00532427,96573.0,96565.0,0.18600717]
[1733030494220,0.00303319,96573.0,96564.0,0.32572837]
[1733030494465,0.00303319,96573.0,96564.0,0.31772837]
[1733030494702,0.00229108,96576.0,96565.0,0.207114]
[1733030494905,0.00303319,96572.0,96565.0,0.002]
[1733030495111,0.00229108,96576.0,96565.0,0.002]
[1733030495529,0.00303211,96575.0,96565.0,0.002]
[1733030495745,0.00229108,96574.0,96565.0,0.005]
[1733030495970,0.00229108,96574.0,96565.0,0.002]
[1733030496202,0.00229108,96574.0,96564.0,0.31372837]
[1733030496429,0.00229108,96574.0,96567.0,0.0463]
[1733030496628,0.00229108,96574.0,96569.0,0.18600717]
[1733030496882,0.00229108,96576.0,96569.0,0.23230717]
[1733030497145,0.001727,96578.0,96575.0,0.0009822]
[1733030497365,0.001727,96578.0,96576.0,0.1249]
[1733030500281,0.001727,96578.0,96576.0,0.1259]
[1733030500514,0.001727,96578.0,96576.0,0.1279]
[1733030504442,0.00304577,96577.0,96576.0,0.1279]
[1733030505729,0.001727,96578.0,96576.0,0.1269]
[1733030505885,0.001727,96578.0,96576.0,0.1259]
[1733030506285,0.00304577,96577.0,96576.0,0.1279]
[1733030506576,0.00304577,96577.0,96576.0,0.1249]
[1733030506774,0.00304577,96577.0,96576.0,0.1269]
[1733030507081,0.00304577,96577.0,96576.0,0.1259]
[1733030507310,0.00304577,96577.0,96576.0,0.0463]
[1733030507530,0.00304577,96577.0,96576.0,0.0483]
[1733030509289,0.00304577,96577.0,96576.0,0.0493]
[1733030515928,0.001727,96578.0,96576.0,0.0493]
[1733030516689,0.001727,96578.0,96576.0,0.0483]
[1733030517144,0.001727,96578.0,96576.0,0.0463]
[1733030517270,0.001727,96578.0,96576.0,0.0473]
[1733030517472,0.0030463,96577.0,96576.0,0.0473]
[1733030517680,0.0030463,96577.0,96576.0,0.0493]
[1733030518902,0.0030463,96577.0,96576.0,0.0483]
[1733030519111,0.0030463,96577.0,96576.0,0.0463]
[1733030519332,0.0030463,96577.0,96576.0,0.0493]
[1733030519541,0.001727,96578.0,96576.0,0.0493]
[1733030520332,0.001727,96578.0,96576.0,0.0483]
[1733030520720,0.001727,96578.0,96576.0,0.0473]
[1733030521122,0.001727,96578.0,96576.0,0.0493]
[1733030521407,0.001727,96578.0,96576.0,0.003]
[1733030523734,0.001727,96578.0,96577.0,0.207088]
[1733030524555,0.001727,96578.0,96576.0,0.003]
[1733030524682,0.001727,96578.0,96577.0,0.207088]
[1733030525209,0.001727,96578.0,96577.0,0.208088]
[1733030525816,0.001727,96578.0,96577.0,0.39351343]
[1733030526250,0.001727,96578.0,96577.0,0.207088]
[1733030526463,0.001727,96578.0,96577.0,0.34496903]
[1733030526686,0.001727,96578.0,96577.0,0.57336979]
[1733030527111,0.001727,96578.0,96577.0,0.341588]
[1733030527568,0.002727,96578.0,96577.0,0.350588]
[1733030528131,0.001727,96578.0,96577.0,0.57336241]
[1733030528335,0.001727,96578.0,96577.0,0.341588]
[1733030528566,0.001727,96578.0,96577.0,0.56836241]
[1733030528900,0.001727,96578.0,96577.0,0.336588]
[1733030529023,0.001727,96578.0,96577.0,0.341588]
[1733030529883,0.002727,96578.0,96577.0,0.350588]
[1733030530297,0.002727,96578.0,96577.0,0.58236241]
[1733030531370,0.002727,96578.0,96577.0,0.58239496]
[1733030531570,0.002727,96578.0,96577.0,0.58239633]
[1733030532105,0.002727,96578.0,96577.0,0.350588]
[1733030541291,0.002727,96578.0,96577.0,0.62868578]
[1733030544577,0.002727,96578.0,96577.0,0.350588]
[1733030544920,0.002727,96578.0,96577.0,0.62915284]
[1733030545589,0.002727,96578.0,96577.0,0.35041516]
[1733030545988,0.002727,96578.0,96577.0,0.62898102]
[1733030546528,0.002727,96578.0,96577.0,0.54638102]
[1733030548163,0.002727,96578.0,96577.0,0.55876583]
[1733030548778,0.002727,96578.0,96577.0,0.28019997]
[1733030548988,0.002727,96578.0,96577.0,0.55878109]
[1733030549644,0.002727,96578.0,96577.0,0.56050809]
[1733030550308,0.002727,96578.0,96577.0,0.28192697]
[1733030550737,0.002727,96578.0,96577.0,0.02811181]
[1733030550949,0.002727,96578.0,96577.0,0.02811585]
[1733030551154,0.00579464,96578.0,96577.0,0.02811585]
[1733030554009,0.002727,96578.0,96577.0,0.02811585]
[1733030554486,0.002727,96578.0,96577.0,0.02812381]
[1733030558509,0.079827,96578.0,96577.0,0.02812381]
[1733030558942,0.08286873,96578.0,96577.0,0.02812381]
[1733030561527,0.08286873,96578.0,96577.0,0.02812212]
[1733030561528,0.33924554,96578.0,96577.0,0.02812212]
[1733030561732,0.33695473,96578.0,96577.0,0.26039645]
[1733030561957,0.33695473,96578.0,96577.0,0.015727]
[1733030562969,0.33595473,96578.0,96577.0,0.006727]
[1733030563392,0.33595473,96578.0,96577.0,0.011727]
[1733030563643,0.33595473,96578.0,96577.0,0.001727]
[1733030563791,0.33595473,96578.0,96577.0,0.004727]
[1733030563970,0.33595473,96578.0,96577.0,0.008727]
[1733030564175,0.33595473,96578.0,96577.0,0.004727]
[1733030564376,0.33595473,96578.0,96577.0,0.001727]
[1733030564581,0.33595473,96578.0,96577.0,0.004727]
[1733030565095,0.33595473,96578.0,96577.0,0.006727]
[1733030566022,0.39120206,96578.0,96577.0,0.006727]
[1733030566238,0.33595473,96578.0,96577.0,0.006727]
[1733030567562,0.44806215,96578.0,96577.0,0.006727]
[1733030570340,0.44806215,96578.0,96577.0,0.001727]
[1733030570835,0.45306215,96578.0,96577.0,0.001727]
[1733030571255,0.45106215,96578.0,96577.0,0.001727]
[1733030571718,0.45306215,96578.0,96577.0,0.001727]
[1733030571974,0.52001643,96578.0,96577.0,0.001727]
[1733030572654,0.54089993,96578.0,96577.0,0.001727]
[1733030573991,0.47394565,96578.0,96577.0,0.001727]
[1733030579484,0.45306215,96578.0,96577.0,0.001727]
[1733030595955,0.32896215,96578.0,96577.0,0.001727]
[1733030596161,0.12187615,96578.0,96577.0,0.001727]
[1733030596518,0.12416728,96578.0,96577.0,0.001727]
[1733030598844,0.12187615,96578.0,96577.0,0.001727]
[1733030599075,0.12416727,96578.0,96577.0,0.001727]
[1733030602877,0.02132206,96578.0,96577.0,0.001727]
[1733030612006,0.00976873,96578.0,96577.0,0.001727]
[1733030618296,0.02916432,96578.0,96577.0,0.001727]
[1733030618752,0.02916431,96578.0,96577.0,0.001727]
[1733030618976,0.02916431,96578.0,96571.0,0.18576455]
[1733030618977,0.13516221,96556.0,96526.0,0.27864682]
[1733030619205,0.00926221,96537.0,96516.0,0.207218]
[1733030619432,0.15,96554.0,96504.0,0.00042566]
[1733030619433,0.00926221,96523.0,96504.0,0.00042566]
[1733030619640,0.00926221,96523.0,96505.0,0.01084069]
[1733030619641,0.11210742,96523.0,96505.0,0.01084069]
[1733030619854,0.11732951,96523.0,96505.0,0.01084069]
[1733030620478,0.11732951,96523.0,96522.0,0.0028634]
[1733030620688,0.11732951,96523.0,96522.0,0.00145888]
[1733030622853,0.11732951,96523.0,96522.0,0.00345888]
[1733030623065,0.11732951,96523.0,96522.0,0.00245888]
[1733030623490,0.11732951,96523.0,96522.0,0.00445888]
[1733030624067,0.11732951,96523.0,96522.0,0.00245888]
[1733030624597,0.11732951,96523.0,96522.0,0.00345888]
[1733030625030,0.11732951,96523.0,96522.0,0.00245888]
[1733030625690,0.11732951,96523.0,96522.0,0.00145888]
[1733030626116,0.14844799,96523.0,96522.0,0.00245888]
[1733030626324,0.11732951,96523.0,96522.0,0.00245888]
[1733030627009,0.11732951,96523.0,96522.0,0.00145888]
[1733030627218,0.11732951,96523.0,96522.0,0.00245888]
[1733030627663,0.11732951,96523.0,96522.0,0.00145888]
[1733030629214,0.0121918,96523.0,96522.0,0.00245888]
[1733030629442,0.0121918,96523.0,96522.0,0.00145888]
[1733030629831,0.0121918,96523.0,96522.0,0.00245888]
[1733030630069,0.00292959,96523.0,96522.0,0.00245888]
[1733030630276,0.0121918,96523.0,96522.0,0.00245888]
[1733030630505,0.00522196,96523.0,96522.0,0.00245888]
[1733030630918,0.00292959,96523.0,96522.0,0.00245888]
[1733030631208,0.42366121,96526.0,96522.0,0.00245888]
[1733030631447,0.00291689,96523.0,96522.0,0.00245888]
[1733030631649,0.207202,96524.0,96522.0,0.00245888]
[1733030631854,0.00291689,96523.0,96522.0,0.00245888]
[1733030632056,0.00291689,96523.0,96522.0,0.00145888]
[1733030633060,0.00291689,96523.0,96522.0,0.00245888]
[1733030638734,0.207197,96527.0,96522.0,0.00245888]
[1733030638735,0.20948917,96527.0,96522.0,0.00245888]
[1733030639361,0.2072,96525.0,96522.0,0.00245888]
[1733030639773,0.00293029,96524.0,96522.0,0.00145888]
[1733030640616,0.207204,96523.0,96522.0,0.00145888]
[1733030640838,0.00293029,96524.0,96522.0,0.00145888]